[Event "I Copa Capivaras Do Nordeste"]
[Site "Skype"]
[Date "?"]
[Round "2.1"]
[White "Pedro Tibério"]
[Black "Cleidiane Freitas"]
[Result "1-0"]
[ECO "B20"]
[WhiteElo "2082"]
[BlackElo "1465"]
[WhiteHelo "?"]
[TimeControl "3600+30"]
[Mode "TC"]
[BlackHelo "?"]
[Termination "Checkmate"]
[UTCDate "2019.11.08"]
[Source "Analyze This Pro"]
[UTCTime "21:25:19"]
[Annotator "Ericlock1.0"]

1. e4 c5 2. Be2 Nc6 3. Nc3 Nf6 4. h3 e5 5. d3 Be7 6. Nd5 Bd6 7. Bg5 Qa5+ 8. c3 Nxd5
9. exd5 Nd4 10. b4 cxb4 11. cxd4 b3+ 12. Bd2 Qxd5 13. Qxb3 Qxd4 14. Rc1 O-O 15.
Bf3 Bc5 16. Be3 Bb4+ 17. Kf1 Qh4 18. Rc4 Qe7 19. Qxb4 Qxb4 20. Rxb4 a5 21. Rb2 d6
22. Bb6 Bf5 23. Ne2 Bxd3 24. Kg1 e4 25. Nc1 Rfe8 26. Bg4 Bc4 27. Be3 a4 28. Rxb7
Bd5 29. Rb4 a3 30. Rb6 Rab8 31. Rxd6 Rb2 32. Rxd5 Rc2 33. Kh2 Rc3 34. Bd1 Rc4 35.
Bb3 Rc3 36. Rhd1 Rcc8 37. Rd7 h6 38. Bxf7+ Kf8 39. Bxe8 Kxe8 40. Rxg7 Kf8 41. Rdd7
Ke8 42. Ra7 Kd8 43. Rg8# {jaque Mate}  1-0

[Event "I Copa Capivaras Do Nordeste"]
[Site "Skype"]
[Date "?"]
[Round "2.1"]
[White "Jeferson Teles"]
[Black "Fernando Carlos"]
[Result "0-1"]
[ECO "C42"]
[WhiteElo "2001"]
[BlackElo "1664"]
[WhiteHelo "?"]
[TimeControl "3600+30"]
[Mode "TC"]
[BlackHelo "?"]
[Termination "Checkmate"]
[UTCDate "2019.11.04"]
[Source "Analyze This Pro"]
[UTCTime "16:58:34"]
[Annotator "Ericlock1.0"]

1. e4 e5 2. Nf3 Nf6 3. Bc4 d5 4. exd5 Nxd5 5. O-O Bg4 6. h3 Bh5 7. Qe2 Nc6 8. Qe4
Nf6 9. Qe3 Bxf3 10. Qxf3 Bd6 11. c3 O-O 12. b4 e4 13. Qe2 Re8 14. d4 exd3 15. Qxd3
Ne5 16. Qd4 Nxc4 17. Qxc4 Re4 18. Qb3 Qe7 19. Be3 Qe5 20. Nd2 Qh2# {jaque Mate}
 0-1

[Event "I Copa Capivaras Do Nordeste"]
[Site "Skype"]
[Date "?"]
[Round "2.1"]
[White "Joselito Santos"]
[Black "Edson Cláudio"]
[Result "1-0"]
[ECO "D00"]
[WhiteElo "1742"]
[BlackElo "1710"]
[WhiteHelo "?"]
[TimeControl "3600+30"]
[Mode "TC"]
[BlackHelo "?"]
[Termination "Abandoned"]
[UTCDate "2019.11.05"]
[Source "Analyze This Pro"]
[UTCTime "23:06:30"]
[Annotator "Ericlock1.0"]

1. d4 d5 2. Bf4 Bf5 3. e3 e6 4. h3 Nf6 5. Nd2 Bd6 6. Bg5 Be7 7. Ngf3 Nfd7 8. Bf4
Nf6 9. Ne5 h6 10. Be2 Nbd7 11. c3 Nh7 12. g4 Bf6 13. gxf5 Bxe5 14. dxe5 Qe7 15.
fxe6 Nc5 16. exf7+ Qxf7 17. b4 Nd7 18. Bh5 g6 19. Bg4 O-O-O 20. Nf3 Kb8 21. Nd4
a6 22. Qc2 g5 23. Bg3 h5 24. Bxd7 Rxd7 25. e6 {las negras abandonan}  1-0

[Event "I Copa Capivaras Do Nordeste"]
[Site "Skype"]
[Date "?"]
[Round "2.2"]
[White "Fernando Carlos"]
[Black "Jeferson Teles"]
[Result "0-1"]
[ECO "E20"]
[WhiteElo "1664"]
[BlackElo "2001"]
[WhiteHelo "?"]
[TimeControl "3600+30"]
[Mode "TC"]
[BlackHelo "?"]
[Termination "Abandoned"]
[UTCDate "2019.11.04"]
[Source "Analyze This Pro"]
[UTCTime "23:34:38"]
[Annotator "Ericlock1.0"]

1. c4 Nf6 2. d4 e6 3. Nc3 Bb4 4. Bd2 O-O 5. Nf3 d5 6. e3 a6 7. Be2 Nc6 8. O-O Re8
9. a3 Bxc3 10. Bxc3 Ne4 11. Qc2 a5 12. Nd2 f5 13. Nxe4 fxe4 14. f3 Qg5 15. fxe4
Qxe3+ 16. Kh1 Nxd4 17. Bxd4 Qxd4 18. Rad1 Qxe4 19. Bd3 Qh4 20. Rf3 e5 21. Bf5 Bxf5
22. Rxf5 Qxc4 23. Qxc4 dxc4 24. Rd7 Rad8 25. Rff7 Rxd7 26. Rxd7 e4 27. Kg1 e3 28.
Kf1 c5 29. Ke1 b5 30. Rc7 b4 31. Rxc5 bxa3 32. bxa3 Kf7 33. Rxc4 Re5 34. Rc3 Kf6
35. Rxe3 Rxe3+ {las blancas abandonan}  0-1

[Event "I Copa Capivaras Do Nordeste"]
[Site "Skype"]
[Date "?"]
[Round "2.2"]
[White "Edson Cláudio"]
[Black "Joselito Santos"]
[Result "0-1"]
[ECO "B06"]
[WhiteElo "1710"]
[BlackElo "1742"]
[TimeControl "3600+30"]
[WhiteHelo "?"]
[Mode "TC"]
[BlackHelo "?"]
[Termination "Abandoned"]
[UTCDate "2019.11.06"]
[Source "Analyze This Pro"]
[UTCTime "00:24:12"]

1. e4 g6 2. d4 Bg7 3. e5 e6 4. Be3 a6 5. Nf3 Ne7 6. Bd3 O-O 7. c3 c6 8. O-O b5 9.
Nbd2 Bb7 10. Be4 Re8 11. Bg5 a5 12. a3 Na6 13. a4 b4 14. Nc4 bxc3 15. Nd6 Qb6 16.
Nxe8 Rxe8 17. Rb1 cxb2 18. Qc2 Nb4 19. Qxb2 Ba6 20. Rfc1 Ned5 21. Bxd5 cxd5 22.
Qc3 Bc4 23. Nd2 Rc8 24. Nxc4 Rxc4 25. Qe3 Qc6 26. Rd1 Qxa4 27. Ra1 Qc6 28. Bh6 Nc2
29. Qg5 Bxh6 30. Qd8+ Bf8 31. Rxa5 Qc7 32. Qxc7 Rxc7 33. Ra8 Nxd4 34. h3 Nc6 35.
Rc1 Kg7 36. Ra4 Rb7 37. Raa1 Nxe5 38. Rcb1 Rc7 39. Rc1 Rc6 40. Rxc6 dxc6 41. Kf1
c5 42. Ke2 c4 43. Kd2 Be7 44. Re1 Nd3 45. Rf1 Bc5 46. Kc2 Bxf2 47. Kd2 f5 48. Ke2
e5 49. Ra1 e4 50. Kd2 d4 51. g4 c3+ 52. Kc2 f4 53. g5 Ne5 54. Rf1 e3 55. Ra1 e2
{white resins}  0-1

[Event "I Copa Capivaras Do Nordeste"]
[Site "Skype"]
[Date "?"]
[Round "02.1"]
[White "Fernando Carlos"]
[Black "Jeferson Teles"]
[Result "1-0"]
[ECO "E91"]
[WhiteElo "1664"]
[BlackElo "2001"]
[WhiteHelo "?"]
[TimeControl "1500+10"]
[Mode "TC"]
[BlackHelo "?"]
[Termination "Abandoned"]
[UTCDate "2019.11.05"]
[Source "Analyze This Pro"]
[UTCTime "23:33:54"]
[Annotator "Ericlock1.0"]

1. c4 g6 2. d4 Bg7 3. Nc3 Nf6 4. Nf3 O-O 5. e4 d6 6. Be2 c5 7. d5 e6 8. Bg5 e5 9.
O-O h6 10. Be3 Nbd7 11. a3 a5 12. Qd2 Ng4 13. h3 Nxe3 14. Qxe3 Nf6 15. Nd2 Nh5 16.
Bxh5 gxh5 17. f4 Qh4 18. f5 Qg5 19. Qe2 h4 20. Nf3 Qd8 21. Nh2 Qb6 22. f6 Bh8 23.
Rf2 Kh7 24. Qh5 Qb3 25. Ng4 Bxg4 26. Qxg4 Qxc4 27. Qxh4 Qd4 28. Nb5 Qe3 29. Nxd6
Qg5 30. Qxg5 hxg5 31. Nxb7 Kg6 32. Raf1 c4 33. Nd6 Ra6 34. Nxc4 Bxf6 35. d6 a4 36.
Rxf6+ Kg7 37. Nxe5 Rc6 38. Nd7 Rd8 39. Rxf7+ Kg6 40. Ne5+ Kh6 41. Nxc6 Rxd6 42.
R7f6+ Rxf6 43. Rxf6+ Kh5 44. Kh2 g4 45. hxg4+ Kxg4 46. e5 Kg5 47. Rf1 Kg6 48. e6
Kg7 49. e7 Kh7 50. e8=Q Kh6 51. Rf3 Kg5 52. Qe5+ Kg6 53. Qf5+ Kh6 54. Qg5+ Kxg5
55. Kg3 Kh5 56. Rf5+ Kg6 57. Kg4 {las negras abandonan}  1-0

[Event "I Copa Capivaras Do Nordeste"]
[Site "Skype"]
[Date "?"]
[Round "02.1"]
[White "Diego França"]
[Black "Givson Silva"]
[Result "1/2-1/2"]
[ECO "D10"]
[WhiteElo "1697"]
[BlackElo "1790"]
[TimeControl "1500+10"]
[BlackFideId "13402129"]
[Source "Analyze This Pro"]
[FCGameId "1318789658"]
[WhiteFideId "2004887"]
[WhiteFed "USA"]
[BlackFed "AZE"]

1. d4 {[%clk 0:25:20]} 1... d5 {[%clk 0:25:18]} 2. c4 {[%clk 0:25:29]} 2... c6 {[%clk
0:25:27]} 3. cxd5 {[%clk 0:25:39]} 3... cxd5 {[%clk 0:25:35]} 4. Bf4 {[%clk 0:25:48]}
4... Nf6 {[%clk 0:25:13]} 5. e3 {[%clk 0:25:57]} 5... Nc6 {[%clk 0:24:26]} 6. Bd3
{[%clk 0:26:06]} 6... g6 {[%clk 0:24:27]} 7. Nc3 {[%clk 0:25:41]} 7... Bg7 {[%clk
0:23:59]} 8. h3 {[%clk 0:25:50]} 8... O-O {[%clk 0:24:02]} 9. Nf3 {[%clk 0:25:59]}
9... Nd7 {[%clk 0:24:03]} 10. Bc2 {[%clk 0:22:25]} 10... e5 {[%clk 0:23:27]} 11.
Bg5 {[%clk 0:22:12]} 11... Qa5 {[%clk 0:21:07]} 12. O-O {[%clk 0:22:19]} 12... h6
{[%clk 0:18:57]} 13. Bh4 {[%clk 0:22:25]} 13... exd4 {[%clk 0:18:45]} 14. Nxd4 {[%clk
0:22:17]} 14... Nb6 {[%clk 0:13:55]} 15. Nce2 {[%clk 0:19:32]} 15... Nxd4 {[%clk
0:13:06]} 16. Nxd4 {[%clk 0:19:40]} 16... Nc4 {[%clk 0:12:23]} 17. b3 {[%clk 0:19:07]}
17... Nd2 {[%clk 0:08:53]} 18. Qe1 {[%clk 0:17:26]} 18... Qc3 {[%clk 0:05:47]} 19.
Rd1 {[%clk 0:17:09]} 19... Nf3+ {[%clk 0:02:57]} 20. Nxf3 {[%clk 0:13:19]} 20...
Qxc2 {[%clk 0:03:05]} 21. Qd2 {[%clk 0:13:28]} 21... Qxd2 {[%clk 0:03:01]} 22. Rxd2
{[%clk 0:13:37]} 22... Be6 {[%clk 0:02:59]} 23. Bg3 {[%clk 0:13:10]} 23... Rfc8
{[%clk 0:02:57]} 24. Be5 {[%clk 0:13:12]} 24... Bf8 {[%clk 0:02:40]} 25. Nd4 {[%clk
0:13:09]} 25... Bb4 {[%clk 0:02:25]} 26. Rc2 {[%clk 0:12:41]} 26... Rxc2 {[%clk
0:02:13]} 27. Nxc2 {[%clk 0:12:50]} 27... Be7 {[%clk 0:02:21]} 28. Nd4 {[%clk 0:12:28]}
28... Rc8 {[%clk 0:02:24]} 29. Rd1 {[%clk 0:12:18]} 29... a6 {[%clk 0:01:28]} 30.
a4 {[%clk 0:11:48]} 30... Ba3 {[%clk 0:01:28]} 31. g4 {[%clk 0:09:44]} 31... Rc1
{[%clk 0:01:17]} 32. Rxc1 {[%clk 0:09:50]} 32... Bxc1 {[%clk 0:01:25]} 33. Kf1 {[%clk
0:09:54]} 33... Ba3 {[%clk 0:01:10]} 34. Ke2 {[%clk 0:09:40]} 34... Bc5 {[%clk 0:01:08]}
35. Nxe6 {[%clk 0:06:26]} 35... fxe6 {[%clk 0:01:17]} 36. Kd3 {[%clk 0:06:36]} 36...
Kf7 {[%clk 0:01:24]} 37. Bd4 {[%clk 0:06:33]} 37... Bd6 {[%clk 0:01:16]} 38. e4
{[%clk 0:06:39]} 38... h5 {[%clk 0:00:32]} 39. exd5 {[%clk 0:05:21]} 39... exd5
{[%clk 0:00:41]} 40. Be3 {[%clk 0:05:30]} 40... hxg4 {[%clk 0:00:49]} 41. hxg4 {[%clk
0:05:39]} 41... Ke6 {[%clk 0:00:36]} 42. f4 {[%clk 0:05:37]} 42... Bc7 {[%clk 0:00:25]}
43. Bd2 {[%clk 0:05:18]} 43... Bb6 {[%clk 0:00:31]} 44. Bc1 {[%clk 0:04:27]} 44...
Bc7 {[%clk 0:00:37]} 45. Be3 {[%clk 0:04:25]} 45... Ba5 {[%clk 0:00:38]} 46. Bf2
{[%clk 0:04:12]} 46... Bc7 {[%clk 0:00:43]} 47. Be3 {[%clk 0:03:56]} 47... Ba5 {[%clk
0:00:52]}  1/2-1/2

[Event "I Copa Capivaras Do Nordeste"]
[Site "Skype"]
[Date "?"]
[Round "02.2"]
[White "Jeferson Teles"]
[Black "Fernando Carlos"]
[Result "1-0"]
[ECO "C60"]
[WhiteElo "2001"]
[BlackElo "1664"]
[WhiteHelo "?"]
[TimeControl "1500+10"]
[Mode "TC"]
[BlackHelo "?"]
[Termination "Abandoned"]
[UTCDate "2019.11.08"]
[Source "Analyze This Pro"]
[UTCTime "17:18:10"]
[Annotator "Ericlock1.0"]

1. e4 e5 2. Nf3 Nc6 3. Bb5 Nge7 4. Nc3 g6 5. d4 exd4 6. Nxd4 Bg7 7. Be3 O-O 8. O-O
Nxd4 9. Bxd4 c6 10. Bxg7 Kxg7 11. Be2 b5 12. a4 b4 13. Qd4+ Kg8 14. Qxb4 a5 15.
Qd6 Bb7 16. Rfd1 Nc8 17. Qxd7 Qxd7 18. Rxd7 Rb8 19. Ra3 Nb6 20. Rc7 Rfc8 21. Rxb7
Rxb7 22. Ba6 Rbc7 23. Bxc8 Rxc8 24. Rb3 Nc4 25. Rb7 Kg7 26. h4 Rd8 27. b3 Ne5 28.
f4 Ng4 29. e5 Rd2 30. e6 Ne3 31. e7 Rxg2+ 32. Kh1 Rxc2 33. e8=Q Rc1+ 34. Kh2 Rc2+
35. Kh3 Rxc3 36. Qxf7+ {las negras abandonan}  1-0

[Event "I Copa Capivaras Do Nordeste"]
[Site "Skype"]
[Date "?"]
[Round "02.2"]
[White "Givson Silva"]
[Black "Diego França"]
[Result "1/2-1/2"]
[ECO "A22"]
[WhiteElo "1790"]
[BlackElo "1697"]
[TimeControl "1500+10"]
[BlackFideId "8608288"]
[Source "Analyze This Pro"]
[FCGameId "1766521525"]
[WhiteFideId "8601445"]
[WhiteFed "CHN"]
[BlackFed "CHN"]

1. c4 {[%clk 0:25:19]} 1... e5 {[%clk 0:25:18]} 2. Nc3 {[%clk 0:25:28]} 2... Nf6
{[%clk 0:25:27]} 3. g3 {[%clk 0:25:36]} 3... Bc5 {[%clk 0:25:35]} 4. Bg2 {[%clk
0:25:45]} 4... O-O {[%clk 0:25:42]} 5. e3 {[%clk 0:25:53]} 5... c6 {[%clk 0:25:51]}
6. Nge2 {[%clk 0:26:01]} 6... d5 {[%clk 0:26:00]} 7. cxd5 {[%clk 0:26:10]} 7...
Nxd5 {[%clk 0:26:08]} 8. O-O {[%clk 0:26:14]} 8... Be6 {[%clk 0:25:27]} 9. d4 {[%clk
0:26:06]} 9... exd4 {[%clk 0:25:29]} 10. Ne4 {[%clk 0:26:13]} 10... Bb6 {[%clk 0:25:12]}
11. Nxd4 {[%clk 0:26:21]} 11... Qe7 {[%clk 0:25:19]} 12. Nxe6 {[%clk 0:25:24]} 12...
Qxe6 {[%clk 0:25:27]} 13. b3 {[%clk 0:25:20]} 13... Nd7 {[%clk 0:25:16]} 14. Bb2
{[%clk 0:25:24]} 14... N7f6 {[%clk 0:25:23]} 15. Nxf6+ {[%clk 0:22:50]} 15... Nxf6
{[%clk 0:25:31]} 16. Qc2 {[%clk 0:22:52]} 16... Bc7 {[%clk 0:25:31]} 17. Qc4 {[%clk
0:22:39]} 17... Rfe8 {[%clk 0:24:19]} 18. Qxe6 {[%clk 0:21:38]} 18... Rxe6 {[%clk
0:24:26]} 19. Bh3 {[%clk 0:21:46]} 19... Ree8 {[%clk 0:24:23]} 20. Bxf6 {[%clk 0:21:34]}
20... gxf6 {[%clk 0:24:30]} 21. Rfd1 {[%clk 0:20:48]} 21... Rad8 {[%clk 0:23:47]}
22. Kf1 {[%clk 0:20:54]} 22... Kf8 {[%clk 0:22:20]} 23. Ke2 {[%clk 0:20:22]} 23...
Ba5 {[%clk 0:21:20]} 24. Bf5 {[%clk 0:20:15]} 24... h6 {[%clk 0:21:21]} 25. Rxd8
{[%clk 0:19:41]} 25... Rxd8 {[%clk 0:21:28]} 26. Bd3 {[%clk 0:19:49]} 26... Rd5
{[%clk 0:21:12]} 27. Rc1 {[%clk 0:19:58]} 27... Rh5 {[%clk 0:21:08]} 28. h4 {[%clk
0:18:59]} 28... Bb4 {[%clk 0:21:16]} 29. Rc4 {[%clk 0:19:03]} 29... a5 {[%clk 0:21:23]}
30. Rg4 {[%clk 0:19:00]} 30... Rd5 {[%clk 0:21:13]} 31. a4 {[%clk 0:18:55]} 31...
b5 {[%clk 0:20:21]} 32. Rf4 {[%clk 0:17:58]} 32... Ke7 {[%clk 0:20:22]} 33. Be4
{[%clk 0:12:55]} 33... Rc5 {[%clk 0:20:19]} 34. Bd3 {[%clk 0:12:39]} 34... Rd5 {[%clk
0:20:21]} 35. Re4+ {[%clk 0:12:24]} 35... Kf8 {[%clk 0:20:27]} 36. Rg4 {[%clk 0:12:28]}
36... Bc3 {[%clk 0:19:40]} 37. Be4 {[%clk 0:11:35]} 37... Rc5 {[%clk 0:19:31]} 38.
Bh7 {[%clk 0:11:40]} 38... Ke7 {[%clk 0:19:13]} 39. Rg8 {[%clk 0:11:32]} 39... bxa4
{[%clk 0:18:35]} 40. bxa4 {[%clk 0:11:41]} 40... f5 {[%clk 0:18:14]} 41. Rc8 {[%clk
0:09:36]} 41... Kf6 {[%clk 0:16:58]} 42. e4 {[%clk 0:09:35]} 42... fxe4 {[%clk 0:17:02]}
43. Bxe4 {[%clk 0:09:44]} 43... Bb4 {[%clk 0:17:11]} 44. g4 {[%clk 0:06:15]} 44...
Kg7 {[%clk 0:16:19]} 45. f4 {[%clk 0:04:15]} 45... Rc4 {[%clk 0:15:35]} 46. Kd3
{[%clk 0:04:24]} 46... Rc3+ 47. Kd4 Rg3 {[%clk 0:15:35]} 48. g5 {[%clk 0:02:46]}
48... hxg5 {[%clk 0:15:32]} 49. hxg5 {[%clk 0:02:46]} 49... Bd2 {[%clk 0:14:20]}
50. Ke5 {[%clk 0:01:36]} 50... Rg4 {[%clk 0:14:27]} 51. Rxc6 {[%clk 0:01:12]} 51...
Rxf4 {[%clk 0:14:34]} 52. Rc2 {[%clk 0:00:34]} 52... Rf2 {[%clk 0:14:42]} 53. Kd4
{[%clk 0:00:34]} 53... Be1 {[%clk 0:14:49]} 54. Rxf2 {[%clk 0:00:42]}  1/2-1/2

[Event "I Copa Capivaras Do Nordeste"]
[Site "Skype"]
[Date "?"]
[Round "02.3"]
[White "Jeferson Teles"]
[Black "Fernando Carlos"]
[Result "1-0"]
[ECO "C60"]
[WhiteElo "2001"]
[BlackElo "1664"]
[WhiteHelo "?"]
[TimeControl "900+5"]
[Mode "TC"]
[BlackHelo "?"]
[Termination "time forfeit"]
[UTCDate "2019.11.08"]
[Source "Analyze This Pro"]
[UTCTime "17:55:04"]
[Annotator "Ericlock1.0"]

1. e4 e5 2. Nf3 Nc6 3. Bb5 Nge7 4. O-O g6 5. c3 Bg7 6. d4 exd4 7. cxd4 a6 8. Ba4
O-O 9. d5 Ne5 10. Nxe5 Bxe5 11. Nc3 b5 12. Bh6 bxa4 13. Bxf8 Qxf8 14. Nxa4 Qg7 15.
Qb3 Qh6 16. g3 c6 17. Qa3 Bf6 18. d6 Qf8 19. Qf3 Be5 20. Nb6 Rb8 21. dxe7 Qxe7 22.
Nxc8 Rxc8 23. Rab1 Rb8 24. b3 Bd4 25. Rbe1 Qe5 26. Qf4 Qxf4 27. gxf4 f6 28. Kg2
Kf7 29. Rd1 c5 30. Kf3 a5 31. Rd3 Rb4 32. a3 Rb7 33. h4 h5 34. Re1 d6 35. Rg1 f5
36. exf5 gxf5 37. Rg5 Ke6 38. Rxh5 Rc7 39. Rh6+ Kd5 40. Rf6 {cayó la bandera de
las negras}  1-0

[Event "I Copa Capivaras Do Nordeste"]
[Site "Skype"]
[Date "?"]
[Round "02.3"]
[White "Givson Silva"]
[Black "Diego França"]
[Result "1/2-1/2"]
[ECO "B23"]
[WhiteElo "1790"]
[BlackElo "1697"]
[TimeControl "1500+10"]
[BlackFideId "8602883"]
[Source "Analyze This Pro"]
[FCGameId "4559077"]
[WhiteFideId "4127870"]
[WhiteFed "RUS"]
[BlackFed "CHN"]

1. e4 {[%clk 0:10:18]} 1... c5 {[%clk 0:10:18]} 2. Nc3 {[%clk 0:10:23]} 2... d6 {[%clk
0:10:26]} 3. f4 {[%clk 0:10:24]} 3... g6 {[%clk 0:10:29]} 4. d4 {[%clk 0:10:31]}
4... cxd4 {[%clk 0:10:28]} 5. Qxd4 {[%clk 0:10:38]} 5... Nf6 {[%clk 0:10:36]} 6.
Bd3 {[%clk 0:10:38]} 6... Nc6 {[%clk 0:10:35]} 7. Qf2 {[%clk 0:10:45]} 7... Bg7
{[%clk 0:10:18]} 8. Nf3 {[%clk 0:10:45]} 8... Ng4 {[%clk 0:08:59]} 9. Qe2 {[%clk
0:10:26]} 9... O-O {[%clk 0:08:45]} 10. h3 {[%clk 0:10:32]} 10... Nf6 {[%clk 0:08:54]}
11. Qf2 {[%clk 0:10:40]} 11... Nd7 {[%clk 0:08:33]} 12. O-O {[%clk 0:09:51]} 12...
Qb6 {[%clk 0:08:41]} 13. Nd5 {[%clk 0:07:48]} 13... Qxf2+ {[%clk 0:08:48]} 14. Rxf2
{[%clk 0:07:42]} 14... Nc5 {[%clk 0:08:20]} 15. a3 {[%clk 0:05:15]} 15... Bd7 {[%clk
0:07:04]} 16. Rb1 {[%clk 0:05:15]} 16... Rac8 {[%clk 0:06:40]} 17. Be3 {[%clk 0:05:01]}
17... Nxd3 {[%clk 0:06:30]} 18. cxd3 {[%clk 0:05:09]} 18... b6 {[%clk 0:04:55]}
19. g4 {[%clk 0:04:08]} 19... f5 {[%clk 0:03:06]} 20. gxf5 {[%clk 0:04:16]} 20...
gxf5 {[%clk 0:03:14]} 21. Kh2 {[%clk 0:04:25]} 21... h6 {[%clk 0:02:29]} 22. Rg1
{[%clk 0:04:23]} 22... Kh7 {[%clk 0:02:33]} 23. Rfg2 {[%clk 0:04:19]} 23... Rf7
{[%clk 0:02:40]} 24. Nh4 {[%clk 0:03:22]} 24... fxe4 {[%clk 0:01:44]} 25. dxe4 {[%clk
0:03:29]} 25... Be6 {[%clk 0:01:47]} 26. Rc1 {[%clk 0:02:17]} 26... Bd7 {[%clk 0:01:43]}
27. Rcg1 {[%clk 0:02:10]} 27... Be6 {[%clk 0:01:51]} 28. Rc1 {[%clk 0:02:12]} 28...
Bd7 {[%clk 0:01:59]} 29. Rcg1 {[%clk 0:02:04]} 29... e6 {[%clk 0:01:29]} 30. Rxg7+
{[%clk 0:02:01]} 30... Rxg7 {[%clk 0:01:38]} 31. Nf6+ {[%clk 0:02:10]} 31... Kh8
{[%clk 0:01:47]} 32. Ng6+ {[%clk 0:02:19]} 32... Rxg6 {[%clk 0:01:55]} 33. Rxg6
{[%clk 0:02:28]} 33... Ne7 {[%clk 0:01:50]} 34. Rg2 {[%clk 0:02:30]} 34... Ba4 {[%clk
0:01:17]} 35. f5 {[%clk 0:02:34]} 35... Rc2 {[%clk 0:00:39]} 36. Rxc2 {[%clk 0:02:40]}
36... Bxc2 {[%clk 0:00:47]} 37. fxe6 {[%clk 0:02:48]} 37... Kg7 {[%clk 0:00:55]}
38. Ne8+ {[%clk 0:02:56]} 38... Kg6 {[%clk 0:01:03]} 39. Nxd6 {[%clk 0:03:04]} 39...
h5 {[%clk 0:00:31]} 40. Bd4 {[%clk 0:03:11]} 40... Bb3 {[%clk 0:00:39]} 41. Kg3
{[%clk 0:03:16]} 41... Bxe6 {[%clk 0:00:47]} 42. h4 {[%clk 0:03:22]} 42... Nc8 {[%clk
0:00:41]} 43. Nb5 {[%clk 0:02:55]} 43... Bd7 {[%clk 0:00:49]} 44. Nc7 {[%clk 0:02:16]}
44... Nd6 {[%clk 0:00:47]} 45. Kf4 {[%clk 0:02:14]} 45... Nb5 {[%clk 0:00:56]} 46.
Nxb5 {[%clk 0:02:07]} 46... Bxb5 {[%clk 0:01:04]} 47. Ke5 {[%clk 0:02:16]} 47...
Bc6 {[%clk 0:00:45]} 48. Bc3 {[%clk 0:02:08]} 48... Kf7 {[%clk 0:00:29]} 49. Bb4
{[%clk 0:02:16]} 49... a5 {[%clk 0:00:29]} 50. Bd6  1/2-1/2

[Event "I Copa Capivaras Do Nordeste"]
[Site "Skype"]
[Date "?"]
[Round "02.4"]
[White "Fernando Carlos"]
[Black "Jeferson Teles"]
[Result "1-0"]
[ECO "E92"]
[WhiteElo "1664"]
[BlackElo "2001"]
[WhiteHelo "?"]
[TimeControl "900+5"]
[Mode "TC"]
[BlackHelo "?"]
[Termination "time forfeit"]
[UTCDate "2019.11.08"]
[Source "Analyze This Pro"]
[UTCTime "18:36:32"]
[Annotator "Ericlock1.0"]

1. c4 Nf6 2. d4 g6 3. Nf3 Bg7 4. Nc3 O-O 5. e4 d6 6. Be2 e5 7. dxe5 dxe5 8. O-O c6
9. Bg5 Nbd7 10. Qc2 b6 11. Bh4 Bb7 12. Rfd1 Re8 13. Rd2 Qc7 14. Rad1 Re6 15. Bg3
Rc8 16. b3 Re7 17. h3 Ree8 18. Nh2 Nf8 19. Ng4 Nxg4 20. Bxg4 Ne6 21. Bxe6 Rxe6 22.
Rd7 Qb8 23. Qd3 Ree8 24. Qd6 Qxd6 25. R1xd6 Rb8 26. Rc7 Rec8 27. Rdd7 Rxc7 28. Rxc7
a5 29. Na4 Bf6 30. f4 b5 31. fxe5 Bd8 32. Rd7 bxa4 33. e6 axb3 34. axb3 Bb6+ 35.
Kh2 Bc8 36. exf7+ Kg7 37. Be5+ Kh6 38. f8=Q+ Kh5 39. Qf3+ Kg5 40. Qf4+ Kh5 41. g4+
{cayó la bandera de las negras}  1-0

[Event "I Copa Capivaras Do Nordeste"]
[Site "Skype"]
[Date "?"]
[Round "02.4"]
[White "Diego França"]
[Black "Givson Silva"]
[Result "1/2-1/2"]
[ECO "D82"]
[WhiteElo "1697"]
[BlackElo "1790"]
[TimeControl "1500+10"]
[BlackFideId "8603820"]
[Source "Analyze This Pro"]
[FCGameId "1675206091"]
[WhiteFideId "12500739"]
[WhiteFed "IRI"]
[BlackFed "CHN"]

1. d4 {[%clk 0:10:18]} 1... Nf6 {[%clk 0:10:19]} 2. c4 {[%clk 0:10:25]} 2... g6 {[%clk
0:10:27]} 3. Nc3 {[%clk 0:10:31]} 3... d5 {[%clk 0:10:35]} 4. Bf4 {[%clk 0:10:38]}
4... Bg7 {[%clk 0:10:44]} 5. e3 {[%clk 0:10:46]} 5... dxc4 {[%clk 0:10:52]} 6. Bxc4
{[%clk 0:10:50]} 6... O-O {[%clk 0:11:00]} 7. Nf3 {[%clk 0:10:55]} 7... Nbd7 {[%clk
0:11:09]} 8. O-O {[%clk 0:10:51]} 8... Nh5 {[%clk 0:11:18]} 9. Bg5 {[%clk 0:10:55]}
9... h6 {[%clk 0:11:26]} 10. Bh4 {[%clk 0:11:01]} 10... g5 {[%clk 0:11:35]} 11.
Nd2 {[%clk 0:11:05]} 11... Ndf6 {[%clk 0:11:43]} 12. Bg3 {[%clk 0:11:09]} 12...
Nxg3 {[%clk 0:11:52]} 13. hxg3 {[%clk 0:11:16]} 13... c6 {[%clk 0:12:00]} 14. Nf3
{[%clk 0:11:08]} 14... Bf5 {[%clk 0:11:58]} 15. Rc1 {[%clk 0:11:07]} 15... e6 {[%clk
0:12:05]} 16. Re1 {[%clk 0:09:44]} 16... Qb6 {[%clk 0:11:59]} 17. Bb3 {[%clk 0:08:15]}
17... Rad8 {[%clk 0:12:05]} 18. Qe2 {[%clk 0:08:17]} 18... Bg4 {[%clk 0:11:57]}
19. Na4 {[%clk 0:07:27]} 19... Qc7 {[%clk 0:12:04]} 20. Nc5 {[%clk 0:06:58]} 20...
Qe7 {[%clk 0:12:13]} 21. Nd3 {[%clk 0:07:00]} 21... Nd7 {[%clk 0:12:21]} 22. Qc2
{[%clk 0:07:00]} 22... Bf5 {[%clk 0:12:09]} 23. Qe2 {[%clk 0:06:14]} 23... Bg4 {[%clk
0:10:29]} 24. Qc2 {[%clk 0:06:21]} 24... a5 {[%clk 0:10:36]} 25. a3 {[%clk 0:06:00]}
25... Bh5 {[%clk 0:09:55]} 26. Qc3 {[%clk 0:05:40]} 26... Bg6 {[%clk 0:09:57]} 27.
Bc2 {[%clk 0:05:42]} 27... Ra8 {[%clk 0:09:35]} 28. Nc5 {[%clk 0:04:32]} 28... Qxc5
{[%clk 0:09:33]} 29. Qxc5 {[%clk 0:04:27]} 29... Nxc5 {[%clk 0:09:42]} 30. Bxg6
{[%clk 0:04:24]} 30... Nd7 {[%clk 0:07:20]} 31. Bd3 {[%clk 0:03:05]} 31... Rfd8
{[%clk 0:07:02]} 32. Rc2 {[%clk 0:01:14]} 32... Kf8 {[%clk 0:05:16]} 33. Be2 {[%clk
0:01:02]} 33... a4 {[%clk 0:05:06]} 34. Rec1 {[%clk 0:00:55]} 34... Ke7 {[%clk 0:04:38]}
35. Kf1 {[%clk 0:01:00]} 35... f5 {[%clk 0:04:45]} 36. Bd3 {[%clk 0:00:54]} 36...
g4 {[%clk 0:03:24]} 37. Nd2 {[%clk 0:00:53]} 37... Ne5 {[%clk 0:03:21]} 38. Be2
{[%clk 0:00:57]} 38... Nf7 {[%clk 0:03:08]} 39. Nc4 {[%clk 0:00:57]} 39... Nd6 {[%clk
0:03:17]} 40. Nxd6 {[%clk 0:00:41]} 40... Rxd6 {[%clk 0:03:26]} 41. Rc5 {[%clk 0:00:40]}
41... Kd7 {[%clk 0:03:17]} 42. f4 {[%clk 0:00:46]} 42... Rd5 {[%clk 0:03:00]} 43.
Rxd5+ {[%clk 0:00:51]} 43... exd5 {[%clk 0:02:54]} 44. Bd3 {[%clk 0:00:57]} 44...
Ke6 {[%clk 0:03:03]} 45. Ke2 {[%clk 0:01:05]} 45... Kf6 {[%clk 0:02:37]}  1/2-1/2